Workbook

Sheet Summary
B1: Lower | C1: Moderate | D1: Above Moderate | E1: Total
A2: RHNA | B2: 1500 | C2: 2000 | D2: 2500 | E2: =SUM(B2:D2) -> 6000
A3: Housing Element Sites Inventory
A4: Original Housing Element Capacity (Calculated) | B4: =SUM('Sites Inventory'!B:B) -> 1500 | C4: =SUM('Sites Inventory'!C:C) -> 250 | D4: =SUM('Sites Inventory'!D:D) -> 250 | E4: =SUM(B4:D4) -> 2000
A5: Entitled | B5: =SUM('Sites Inventory'!G:G) -> 500 | C5: =SUM('Sites Inventory'!H:H) -> 0 | D5: =SUM('Sites Inventory'!I:I) -> 250 | E5: =SUM(B5:D5) -> 750
A6: Difference in Units for Entitled Projects (Capacity - Entitled) | B6: =SUM('Sites Inventory'!K:K) -> -500 | C6: =SUM('Sites Inventory'!L:L) -> 0 | D6: =SUM('Sites Inventory'!M:M) -> 250 | E6: -250
A7: Remaining Capacity | B7: =B4-B5+B6 -> 500 | C7: =C4-C5+C6 -> 250 | D7: =D4-D5+D6 -> 250 | E7: 1000
A8: Total Housing Capacity (Adjusted) | B8: =SUM(B7,B5) -> 1000 | C8: =SUM(C7,C5) -> 250 | D8: 500 | E8: =SUM(B8:D8) -> 1750
A10: Surplus/Deficit Capacity to Meet Unmet RHNA | B10: =B8-B2 -> -500 | C10: =C8-C2 -> -1750 | D10: =D8-D2 -> -2000 | E10: =E8-E2 -> -4250

Sheet Sites Inventory
A1: ORIGINAL SITES INVENTORY | B1: Capacity Counted in Housing Element | G1: Current Entitlement | K1: Difference From Original Inventoried Capacity
A2: Assessor Parcel Number | B2: Lower Income Capacity | C2: Moderate Income Capacity | D2: Above Moderate Income Capacity | E2: Total Capacity | F2: Site Status | G2: Planned and Approved Lower Income | H2: Planned and Approved Moderate Income | I2: Planned and Approved Above Moderate Income | J2: Total Planned and Approved | K2: Net Capacity Lower Income | L2: Net Capacity Moderate Income | M2: Net Capacity Above Moderate Income | N2: Total Net Capacity | O2: Notes (APN Change, Project Name, etc.)
A3: PLACEHOLDER | B3: 1000 | C3: 0 | D3: 0 | E3: =SUM(B3:D3) -> 1000 | F3: Completed Project | G3: 500 | H3: 0 | I3: 250 | J3: =SUM(G3:I3) -> 750 | K3: =IF($F3<>"Available", G3-B3, "") -> -500 | L3: =IF($F3<>"Available", H3-C3, "") -> 0 | M3: =IF($F3<>"Available", I3-D3, "") -> 250 | N3: =SUM(K3:M3) -> -250
A4: PLACEHOLDER | B4: 500 | C4: 250 | D4: 250 | E4: =SUM(B4:D4) -> 1000 | F4: Available | G4: 0 | H4: 0 | I4: 0 | J4: =SUM(G4:I4) -> 0 | K4: =IF($F4<>"Available", G4-B4, "") ->  | L4: =IF($F4<>"Available", H4-C4, "") ->  | M4: =IF($F4<>"Available", I4-D4, "") ->  | N4: =SUM(K4:M4) -> 0
